fUST/lending_fUST_20241028
["ID","MTS","AMOUNT","RATE_DAILY","PERIOD"]
[340910616,1730067046751,-151.0,0.00027397,7]
[340910617,1730067046760,-151.0,0.00027397,7]
[340910618,1730067046769,-151.0,0.00027397,7]
[340910619,1730067046779,-151.0,0.00027397,7]
[340910620,1730067046788,-200.0,0.00027397,7]
[340910621,1730067046798,-500.0,0.00027397,30]
[340910622,1730067046807,-1432.09,0.00027397,30]
[340910623,1730067046817,-623.21,0.00027397,30]
[340910624,1730067046826,-500.0,0.00027397,30]
[340910625,1730067046836,-984.24,0.00027397,30]
[340910626,1730067046847,-500.0,0.00027397,30]
[340910627,1730067046856,-822.49,0.00027397,30]
[340910628,1730067046865,-500.0,0.00027397,30]
[340910629,1730067046874,-500.0,0.00027397,30]
[340910630,1730067046884,-500.0,0.00027397,30]
[340910631,1730067046894,-450.99723766,0.00027397,30]
[340910632,1730067046903,-588.66,0.00027397,30]
[340910633,1730067046913,-2522.266547,0.00027397,7]
[340910634,1730067046922,-2522.266547,0.00027397,7]
[340910635,1730067046932,-2522.266547,0.00027397,7]
[340910636,1730067046941,-2522.266547,0.00027397,7]
[340910637,1730067046950,-2522.266547,0.00027397,7]
[340910638,1730067046959,-2522.266547,0.00027397,7]
[340910639,1730067046970,-706.69,0.00027397,30]
[340910640,1730067046979,-1314.71,0.00027397,30]
[340910641,1730067046988,-500.0,0.00027397,30]
[340910642,1730067046998,-651.014297,0.00027397,7]
[340910643,1730067047011,-651.014297,0.00027397,7]
[340910644,1730067047021,-651.014297,0.00027397,7]
[340910645,1730067047030,-651.014297,0.00027397,7]
[340910646,1730067047039,-651.014297,0.00027397,7]
[340910647,1730067047049,-651.014297,0.00027397,7]
[340910648,1730067047058,-748.265722,0.00027397,7]
[340910649,1730067047068,-547.89,0.00027397,30]
[340910650,1730067047077,-748.265722,0.00027397,7]
[340910651,1730067047087,-748.265722,0.00027397,7]
[340910652,1730067047099,-748.265722,0.00027397,7]
[340910653,1730067047109,-748.265722,0.00027397,7]
[340910654,1730067047118,-748.265722,0.00027397,7]
[340910655,1730067047127,-500.0,0.00027397,30]
[340910656,1730067047137,-500.0,0.00027397,30]
[340910657,1730067047146,-820.06,0.00027397,30]
[340910658,1730067047155,-754.69,0.00027397,30]
[340910659,1730067047165,-872.55,0.00027397,30]
[340910660,1730067047174,-644.94,0.00027397,30]
[340910661,1730067047183,-170.268637,0.00027397,7]
[340910662,1730067047193,-170.268637,0.00027397,7]
[340910663,1730067047203,-170.268637,0.00027397,7]
[340910664,1730067047213,-170.268637,0.00027397,7]
[340910665,1730067047222,-500.0,0.00027397,30]
[340910666,1730067047232,-170.268637,0.00027397,7]
[340910667,1730067047241,-170.268637,0.00027397,7]
[340910668,1730067047253,-594.12,0.00027397,30]
[340910669,1730067047263,-500.0,0.00027397,30]
[340910670,1730067047273,-500.0,0.00027397,30]
[340910671,1730067047282,-500.0,0.00027397,30]
[340910672,1730067047292,-500.0,0.00027397,30]
[340910673,1730067047302,-500.0,0.00027397,30]
[340910674,1730067047311,-500.0,0.00027397,30]
[340910675,1730067047321,-500.0,0.00027397,30]
[340910676,1730067047331,-691.23,0.00027397,30]
[340910677,1730067047341,-1053.75,0.00027397,30]
[340910678,1730067047351,-500.0,0.00027397,30]
[340910679,1730067047361,-500.0,0.00027397,30]
[340910680,1730067047370,-517.28,0.00027397,30]
[340910681,1730067047380,-500.0,0.00027397,30]
[340910682,1730067047389,-1017.99,0.00027397,30]
[340910683,1730067047398,-500.0,0.00027397,30]
[340910684,1730067047408,-500.0,0.00027397,30]
[340910685,1730067047417,-573.18,0.00027397,30]
[340910686,1730067047427,-500.0,0.00027397,30]
[340910687,1730067047436,-500.0,0.00027397,30]
[340910688,1730067047445,-500.0,0.00027397,30]
[340910689,1730067047455,-503.48,0.00027397,30]
[340910690,1730067047464,-606.0,0.00027397,30]
[340910691,1730067047474,-2638.718085,0.00027397,7]
[340910692,1730067047484,-2638.718085,0.00027397,7]
[340910693,1730067047493,-2638.718085,0.00027397,7]
[340910694,1730067047502,-789.27,0.00027397,30]
[340910695,1730067047512,-2638.718085,0.00027397,7]
[340910696,1730067047521,-609.57,0.00027397,30]
[340910697,1730067047530,-2638.718085,0.00027397,7]
[340910698,1730067047540,-2638.718085,0.00027397,7]
[340910699,1730067047550,-151.0,0.00027397,7]
[340910700,1730067047560,-500.0,0.00027397,30]
[340910701,1730067047570,-500.0,0.00027397,30]
[340910702,1730067047581,-950.69,0.00027397,7]
[340910703,1730067047593,-540.77,0.00027397,30]
[340910704,1730067047604,-500.0,0.00027397,30]
[340910705,1730067047613,-500.0,0.00027397,30]
[340910706,1730067047623,-500.0,0.00027397,30]
[340910707,1730067047632,-536.58,0.00027397,30]
[340910708,1730067047642,-1020.69,0.00027397,30]
[340910709,1730067047652,-729.669402,0.00027397,7]
[340910710,1730067047662,-500.0,0.00027397,30]
[340910711,1730067047671,-547.83,0.00027397,30]
[340910712,1730067047680,-500.0,0.00027397,30]
[340910713,1730067047689,-500.0,0.00027397,30]
[340910714,1730067047699,-500.0,0.00027397,30]
[340910715,1730067047709,-151.0,0.00027397,7]
[340910716,1730067047718,-151.0,0.00027397,7]
[340910717,1730067047727,-151.0,0.00027397,7]
[340910718,1730067047737,-500.0,0.00027397,30]
[340910719,1730067047747,-500.0,0.00027397,30]
[340910720,1730067047756,-500.0,0.00027397,30]
[340910721,1730067047765,-972.5,0.00027397,30]
[340910722,1730067047776,-500.0,0.00027397,30]
[340910723,1730067047786,-500.0,0.00027397,30]
[340910724,1730067047795,-500.0,0.00027397,30]
[340910725,1730067047804,-500.0,0.00027397,30]
[340910726,1730067047814,-853.64,0.00027397,30]
[340910727,1730067047823,-500.0,0.00027397,30]
[340910728,1730067047833,-712.49,0.00027397,30]
[340910729,1730067047844,-500.0,0.00027397,30]
[340910730,1730067047853,-500.0,0.00027397,30]
[340910731,1730067047863,-761.63,0.00027397,30]
[340910732,1730067047872,-324.262108,0.00027397,7]
[340910733,1730067047882,-324.262108,0.00027397,7]
[340910734,1730067047893,-324.262108,0.00027397,7]
[340910735,1730067047905,-324.262108,0.00027397,7]
[340910736,1730067047914,-324.262108,0.00027397,7]
[340910737,1730067047925,-324.262099,0.00027397,7]
[340910738,1730067047934,-955.94,0.00027397,30]
[340910739,1730067047944,-500.0,0.00027397,30]
[340910740,1730067047954,-915.64,0.00027397,30]
[340910741,1730067047964,-674.1,0.00027397,30]
[340910742,1730067047975,-733.86,0.00027397,30]
[340910743,1730067047986,-500.0,0.00027397,30]
[340910744,1730067047996,-631.51,0.00027397,30]
[340910745,1730067048006,-507.98,0.00027397,30]
[340910746,1730067048017,-3424.21,0.00027397,30]
[340910747,1730067048027,-500.0,0.00027397,30]
[340910748,1730067048037,-627.74,0.00027397,30]
[340910749,1730067048047,-952.28,0.00027397,30]
[340910750,1730067048057,-311.03301,0.00027397,7]
[340910751,1730067048068,-311.03301,0.00027397,7]
[340910752,1730067048077,-311.03301,0.00027397,7]
[340910753,1730067048086,-856.38,0.00027397,30]
[340910754,1730067048098,-18433.01,0.00027397,30]
[340910755,1730067048109,-311.03301,0.00027397,7]
[340910756,1730067048118,-270.546962,0.00027397,7]
[340910757,1730067048128,-311.03301,0.00027397,7]
[340910758,1730067048138,-270.546962,0.00027397,7]
[340910759,1730067048148,-311.033,0.00027397,7]
[340910760,1730067048158,-270.546962,0.00027397,7]
[340910761,1730067048168,-270.546962,0.00027397,7]
[340910762,1730067048177,-270.546962,0.00027397,7]
[340910763,1730067048187,-270.546958,0.00027397,7]
[340910764,1730067048197,-500.0,0.00027397,30]
[340910765,1730067048206,-500.0,0.00027397,30]
[340910766,1730067048216,-500.0,0.00027397,30]
[340910767,1730067048227,-213.595417,0.00027397,7]
[340910768,1730067048236,-213.595417,0.00027397,7]
[340910769,1730067048246,-213.595417,0.00027397,7]
[340910770,1730067048259,-213.595417,0.00027397,7]
[340910771,1730067048268,-213.595417,0.00027397,7]
[340910772,1730067048278,-213.595424,0.00027397,7]
[340910773,1730067048287,-2478.500544,0.00027397,7]
[340910774,1730067048297,-2478.500544,0.00027397,7]
[340910775,1730067048307,-4994.61,0.00027397,21]
[340910776,1730067048316,-2478.500544,0.00027397,7]
[340910777,1730067048326,-1009.93,0.00027397,30]
[340910778,1730067048338,-500.0,0.00027397,30]
[340910779,1730067048352,-2478.500544,0.00027397,7]
[340910780,1730067048361,-2478.500544,0.00027397,7]
[340910781,1730067048370,-2478.500537,0.00027397,7]
[340910782,1730067048379,-500.0,0.00027397,30]
[340910783,1730067048388,-500.0,0.00027397,30]
[340910784,1730067048398,-1886.5,0.00027397,30]
[340910785,1730067048407,-541.17,0.00027397,30]
[340910786,1730067048416,-355.40138615,0.00027397,30]
[340910787,1730067048426,-568.5,0.00027397,30]
[340910788,1730067048436,-500.0,0.00027397,30]
[340910789,1730067048446,-1127.05,0.00027397,30]
[340910790,1730067048456,-151.0,0.00027397,7]
[340910791,1730067048467,-151.0,0.00027397,7]
[340910792,1730067048476,-151.0,0.00027397,7]
[340910793,1730067048487,-1199.79,0.00027397,30]
[340910794,1730067048498,-1015.92,0.00027397,30]
[340910795,1730067048507,-500.0,0.00027397,30]
[340910796,1730067048516,-283.67699612,0.00027397,2]
[340910797,1730067048527,-762.16,0.00027397,30]
[340910798,1730067048536,-500.0,0.00027397,30]
[340910799,1730067048546,-408.60836333,0.00027397,30]
[340910800,1730067048555,-500.0,0.00027397,30]
[340910801,1730067048565,-500.0,0.00027397,30]
[340910802,1730067048574,-500.0,0.00027397,30]
[340910803,1730067048584,-1048.86797,0.00027397,7]
[340910804,1730067048593,-1048.86797,0.00027397,7]
[340910805,1730067048603,-500.0,0.00027397,30]
[340910806,1730067048612,-1048.86797,0.00027397,7]
[340910807,1730067048622,-500.0,0.00027397,30]
[340910808,1730067048632,-1048.86797,0.00027397,7]
[340910809,1730067048642,-1048.86797,0.00027397,7]
[340910810,1730067048651,-1048.867978,0.00027397,7]
[340910811,1730067048661,-522.290465,0.00027397,7]
[340910812,1730067048671,-522.290465,0.00027397,7]
[340910813,1730067048681,-522.290465,0.00027397,7]
[340910814,1730067048690,-522.290465,0.00027397,7]
[340910815,1730067048700,-522.290465,0.00027397,7]
[340910816,1730067048709,-522.290474,0.00027397,7]
[340910817,1730067048719,-647.768973,0.00027397,7]
[340910818,1730067048728,-647.768973,0.00027397,7]
[340910819,1730067048738,-647.768973,0.00027397,7]
[340910820,1730067048748,-500.0,0.00027397,30]
[340910821,1730067048758,-647.768973,0.00027397,7]
[340910822,1730067048767,-647.768973,0.00027397,7]
[340910823,1730067048777,-647.768979,0.00027397,7]
[340910824,1730067048786,-1935.97,0.00027397,30]
[340910825,1730067048806,-2786.01,0.00027397,30]
[340910826,1730067048818,-1053.35,0.00027397,30]
[340910827,1730067048828,-500.0,0.00027397,30]
[340910828,1730067048838,-2687.63818881,0.00027397,30]
[340910829,1730067049038,-517.36181119,0.00027397,30]
[340910830,1730067049048,-6317.06,0.00027397,30]
[340910831,1730067049057,-500.0,0.00027397,30]
[340910832,1730067049067,-542.7,0.00027397,30]
[340910833,1730067049077,-500.0,0.00027397,30]
[340910834,1730067049087,-151.0,0.00027397,7]
[340910835,1730067049099,-151.0,0.00027397,7]
[340910836,1730067049108,-151.0,0.00027397,7]
[340910837,1730067049118,-500.0,0.00027397,30]
[340910838,1730067049128,-500.0,0.00027397,30]
[340910839,1730067049137,-1641.53,0.00027397,30]
[340910840,1730067049148,-328.05823468,0.00027397,30]
[340910841,1730067049161,-366.18176532,0.00027397,30]
[340910842,1730067049171,-481.81489626,0.00027397,30]
[340910843,1730067049181,-1159.09,0.00027397,30]
[340910844,1730067049191,-1734.32,0.00027397,30]
[340910845,1730067049201,-731.01,0.00027397,30]
[340910846,1730067049210,-542.08,0.00027397,30]
[340910847,1730067049220,-1364.86,0.00027397,30]
[340910848,1730067049230,-500.0,0.00027397,30]
[340910849,1730067049240,-979.02,0.00027397,30]
[340910850,1730067049251,-311.472158,0.00027397,7]
[340910851,1730067049262,-1284.79,0.00027397,30]
[340910852,1730067049272,-311.472158,0.00027397,7]
[340910853,1730067049282,-311.472158,0.00027397,7]
[340910854,1730067049292,-500.0,0.00027397,30]
[340910855,1730067049302,-311.472158,0.00027397,7]
[340910856,1730067049311,-311.472158,0.00027397,7]
[340910857,1730067049321,-239.586058,0.00027397,7]
[340910858,1730067049333,-500.0,0.00027397,30]
[340910859,1730067049346,-311.472156,0.00027397,7]
[340910860,1730067049355,-500.0,0.00027397,30]
[340910861,1730067049370,-618.72,0.00027397,30]
[340910862,1730067049379,-500.0,0.00027397,30]
[340910863,1730067049389,-744.51,0.00027397,30]
[340910864,1730067049399,-1622.82,0.00027397,30]
[340910865,1730067049409,-811.29,0.00027397,30]
[340910866,1730067049419,-553.52,0.00027397,30]
[340910867,1730067049429,-500.0,0.00027397,30]
[340910868,1730067049438,-500.0,0.00027397,30]
[340910869,1730067049448,-500.0,0.00027397,30]
[340910870,1730067049458,-700.29,0.00027397,30]
[340910871,1730067049467,-500.0,0.00027397,30]
[340910872,1730067049477,-512.08,0.00027397,30]
[340910873,1730067049487,-1361.19,0.00027397,30]
[340910874,1730067049496,-1427.77,0.00027397,30]
[340910875,1730067049506,-500.0,0.00027397,30]
[340910876,1730067049517,-500.0,0.00027397,30]
[340910877,1730067049527,-362.12920288,0.00027397,2]
[340910878,1730067049536,-1805.26,0.00027397,30]
[340910879,1730067049547,-537.96,0.00027397,30]
[340910880,1730067049556,-150.112233,0.000274,7]
[340910881,1730067049566,-150.112233,0.000274,8]
[340910882,1730067049575,-3000.0,0.000274,2]
[340910883,1730067049585,-150.112233,0.000274,7]
[340910884,1730067049595,-150.112233,0.000274,5]
[340910885,1730067049606,-150.112233,0.000274,10]
[340910886,1730067049616,-150.112233,0.000274,5]
[340910887,1730067049626,-1463.9655,0.000274,2]
[340910888,1730067049636,-3000.0,0.0002741,2]
[340910889,1730067049646,-3000.0,0.0002742,2]
[340910890,1730067049656,-151.0,0.0002743,3]
[340910891,1730067049666,-93.45296883,0.0002743,7]
[340910892,1730067050188,-401.18,0.00027284,10]
[340910893,1730067050200,-165.49860617,0.0002743,7]
[340910894,1730067050210,-258.951575,0.0002743,7]
[340910895,1730067050220,-151.0,0.0002743,7]
[340910896,1730067050232,-212.59685,0.0002743,7]
[340910897,1730067050242,-3000.0,0.0002743,2]
[340910898,1730067050253,-3000.0,0.0002744,2]
[340910899,1730067050265,-3000.0,0.0002745,2]
[340910900,1730067050280,-276.849104,0.00027453,7]
[340910901,1730067050289,-276.849104,0.00027453,7]
[340910902,1730067050299,-3000.0,0.0002746,2]
[340910903,1730067050308,-151.0,0.0002747,7]
[340910904,1730067050319,-3000.0,0.0002747,2]
[340910905,1730067050329,-151.0,0.0002748,7]
[340910906,1730067050344,-3000.0,0.0002748,2]
[340910907,1730067050354,-2522.266547,0.0002749,7]
[340910908,1730067050363,-2522.266547,0.0002749,7]
[340910909,1730067050372,-3000.0,0.0002749,2]
[340910910,1730067050382,-651.014297,0.0002749,7]
[340910911,1730067050391,-651.014297,0.0002749,7]
[340910912,1730067050401,-150.112233,0.000275,6]
[340910913,1730067050410,-150.112233,0.000275,10]
[340910914,1730067050419,-150.112233,0.000275,10]
[340910915,1730067050430,-150.112233,0.000275,6]
[340910916,1730067050439,-3000.0,0.000275,2]
[340910917,1730067050451,-3000.0,0.0002751,2]
[340910918,1730067050460,-3000.0,0.0002752,2]
[340910919,1730067050470,-3000.0,0.0002753,2]
[340910920,1730067050480,-748.265722,0.0002753,7]
[340910921,1730067050490,-748.265722,0.0002753,7]
[340910922,1730067050499,-170.268637,0.0002753,7]
[340910923,1730067050509,-170.268637,0.0002753,7]
[340910924,1730067050518,-2638.718085,0.0002753,7]
[340910925,1730067050528,-2638.718085,0.0002753,7]
[340910926,1730067050538,-3000.0,0.0002754,2]
[340910927,1730067050547,-3000.0,0.0002755,2]
[340910928,1730067050557,-3015.775258,0.0002756,2]
[340910929,1730067050566,-3200.0,0.00027569,2]
[340910930,1730067050576,-642.007,0.00027569,2]
[340910931,1730067050585,-151.0,0.00027569,7]
[340910932,1730067050598,-151.0,0.00027569,7]
[340910933,1730067050607,-299.636898,0.00027569,7]
[340910934,1730067050617,-151.0,0.00027569,7]
[340910935,1730067050626,-151.0,0.00027569,7]
[340910936,1730067050635,-151.0,0.00027569,7]
[340910937,1730067050645,-151.0,0.00027569,7]
[340910938,1730067050655,-150.112233,0.000276,9]
[340910939,1730067050664,-500.0,0.00027649,10]
[340910940,1730067050674,-500.0,0.00027649,10]
[340910941,1730067050684,-151.0,0.00027651,7]
[340910942,1730067050694,-151.0,0.00027671,7]
[340910943,1730067050704,-158.733515,0.00027671,7]
[340910944,1730067050714,-500.0,0.00027671,30]
[340910945,1730067050724,-500.0,0.00027671,30]
[340910946,1730067050734,-500.0,0.00027671,30]
[340910947,1730067050743,-500.0,0.00027671,30]
[340910948,1730067050753,-516.38,0.00027671,30]
[340910949,1730067050762,-500.0,0.00027671,30]
[340910950,1730067050772,-311.27513719,0.00027671,30]
[340910951,1730067050885,-693.185938,0.00027294,7]
[340910952,1730067050895,-693.185938,0.00027296,7]
[340910953,1730067050904,-500.0,0.00027397,30]
[340910954,1730067050913,-925.88486281,0.00027671,30]
[340910955,1730067050923,-500.0,0.00027671,30]
[340910956,1730067050933,-151.0,0.00027671,7]
[340910957,1730067050942,-151.0,0.00027671,7]
[340910958,1730067050951,-500.0,0.00027671,30]
[340910959,1730067050961,-500.0,0.00027671,30]
[340910960,1730067050971,-500.0,0.00027671,30]
[340910961,1730067050982,-882.85,0.00027671,30]
[340910962,1730067050994,-276.849104,0.00027671,7]
[340910963,1730067051004,-276.849104,0.00027671,7]
[340910964,1730067051014,-276.849104,0.00027671,7]
[340910965,1730067051024,-276.849112,0.00027671,7]
[340910966,1730067051034,-500.0,0.00027671,30]
[340910967,1730067051044,-500.0,0.00027671,30]
[340910968,1730067051054,-500.0,0.00027671,30]
[340910969,1730067051066,-594.69,0.00027671,30]
[340910970,1730067051076,-539.99,0.00027671,14]
[340910971,1730067051086,-151.0,0.00027671,7]
[340910972,1730067051097,-151.0,0.00027671,7]
[340910973,1730067051108,-151.0,0.00027671,7]
[340910974,1730067051119,-151.0,0.00027671,7]
[340910975,1730067051129,-521.1,0.00027671,30]
[340910976,1730067051138,-1463.26,0.00027671,30]
[340910977,1730067051148,-906.27,0.00027671,30]
[340910978,1730067051160,-151.0,0.00027671,7]
[340910979,1730067051172,-151.0,0.00027671,7]
[340910980,1730067051182,-500.0,0.00027671,30]
[340910981,1730067051191,-587.98,0.00027671,30]
[340910982,1730067051201,-151.0,0.00027671,7]
[340910983,1730067051210,-152.094656,0.00027671,7]
[340910984,1730067051219,-258.951575,0.00027671,7]
[340910985,1730067051229,-258.951575,0.00027671,7]
[340910986,1730067051238,-527.68,0.00027671,30]
[340910987,1730067051247,-258.951575,0.00027671,7]
[340910988,1730067051258,-258.951568,0.00027671,7]
[340910989,1730067051272,-500.0,0.00027671,30]
[340910990,1730067051281,-771.89,0.00027671,30]
[340910991,1730067051291,-500.0,0.00027671,30]
[340910992,1730067051300,-151.0,0.00027671,7]
[340910993,1730067051310,-27.77726468,0.00027671,7]
[340910994,1730067371196,160.535675,0.00013973,2]
[340910996,1730067391020,5000.0,0.00036257,30]
[340911000,1730068078334,21809.71,0.0002,2]
[340911001,1730068108327,154.9515,0.000176,2]
[340911002,1730068113444,8629.72907127,0.0002,2]
[340911003,1730068124679,303.03030303,0.0002,2]
[340911048,1730068232315,-303.03030303,0.000202,2]
[340911049,1730068232326,-303.03030303,0.000204,2]
[340911050,1730068232335,-303.03030303,0.000206,2]
[340911051,1730068232346,-303.03030303,0.000208,2]
[340911052,1730068232356,-454.54545455,0.00021,4]
[340911053,1730068232367,-151.92129025,0.000212,4]
[340911054,1730068232376,-160.535675,0.00021209,2]
[340911055,1730068232386,-256.16106101,0.00022659,2]
[340911056,1730068232396,-372.704902,0.0002401,2]
[340911057,1730068232406,-214.141863,0.00024109,2]
[340911058,1730068232417,-214.141863,0.00024175,2]
[340911059,1730068232427,-214.141863,0.00024242,2]
[340911060,1730068232439,-214.141863,0.00024308,2]
[340911061,1730068232451,-214.141863,0.00024374,2]
[340911062,1730068232461,-214.141863,0.0002444,2]
[340911063,1730068232471,-214.141863,0.00024506,2]
[340911064,1730068232483,-166.666666,0.00024569,2]
[340911065,1730068232494,-165.40872258,0.00024572,2]
[340911066,1730068232507,-48.73314042,0.00024572,2]
[340911067,1730068232516,-214.141863,0.00024638,2]
[340911068,1730068232695,-214.141863,0.00024704,2]
[340911069,1730068232705,-18.72274041,0.0002477,2]
[340911070,1730068232722,-195.41912259,0.0002477,2]
[340911071,1730068232732,-214.141863,0.00024837,2]
[340911072,1730068232741,-214.141863,0.00024903,2]
[340911073,1730068232751,-299.0,0.00024924,2]
[340911074,1730068232764,-300.0,0.00024924,2]
[340911075,1730068232773,-1847.71728296,0.00024925,2]
[340911082,1730068238690,-4300.894627,0.00024925,2]
[340911094,1730068243370,-4840.00443036,0.00024925,2]
[340911095,1730068243385,-4812.36803108,0.00024925,2]
[340911096,1730068243395,-214.141863,0.00024969,2]
[340911097,1730068243428,-214.141863,0.00025035,2]
[340911098,1730068243476,-214.141863,0.00025101,2]
[340911099,1730068243554,-214.141863,0.00025167,2]
[340911100,1730068243642,-175.644239,0.0002522,2]
[340911101,1730068243744,-214.141863,0.00025233,2]
[340911102,1730068243846,-214.141863,0.00025299,2]
[340911103,1730068243957,-214.141863,0.00025365,2]
[340911104,1730068244105,-166.666666,0.00025406,2]
[340911105,1730068244189,-500.0,0.00026,30]
[340911106,1730068244294,-500.0,0.00026,30]
[340911107,1730068244324,-500.0,0.00026,30]
[340911108,1730068244336,-500.0,0.00026,30]
[340911109,1730068244347,-500.0,0.00026,30]
[340911110,1730068244357,-166.666666,0.00026243,2]
[340911111,1730068244369,-182.224548,0.00026403,2]
[340911112,1730068244379,-171.22648,0.00026403,2]
[340911113,1730068244389,-182.224546,0.00026403,2]
[340911114,1730068244399,-313.07331259,0.00026461,2]
[340911115,1730068244409,-528.0,0.00026462,2]
[340911116,1730068244419,-2396.0,0.00026462,2]
[340911117,1730068244433,-1148.0,0.00026462,2]
[340911118,1730068244443,-171.22648,0.00026843,2]
[340911119,1730068244453,-2769.99999901,0.00026852,2]
[340911120,1730068244464,-5298.22250476,0.00026876,2]
[340911121,1730068244473,-261.048,0.0002697,2]
[340911122,1730068244484,-167.0,0.00027,2]
[340911123,1730068244494,-420.0,0.00027003,2]
[340911124,1730068244503,-182.224546,0.00027063,2]
[340911125,1730068244515,-166.666666,0.00027081,2]
[340911126,1730068244524,-556.43715854,0.00027235,2]
[340911127,1730068244536,-3819.59895085,0.00027235,2]
[340911128,1730068244561,-294.89475133,0.00027235,2]
[340911131,1730068372450,168.42854,0.00013973,2]
[340911139,1730069344554,169.641415,0.00013973,2]
[340911176,1730069432793,-169.641415,0.00020447,2]
[340911177,1730069432803,-166.666666,0.00023471,2]
[340911178,1730069432812,-250.0,0.00023776,2]
[340911179,1730069432822,-69.93700776,0.00023792,2]
[340911231,1730069438893,-4345.31550248,0.00023479,2]
[340911232,1730069438904,-1252.50584317,0.00023479,2]
[340911241,1730069446569,-324.52087,0.00023479,2]
[340911244,1730069849872,562.31711886,0.00023,120]
[340911245,1730069850720,160.000001,0.00013973,2]
[340911246,1730070053391,-182.647831,0.00022242,2]
[340911247,1730070053425,-265.2770425,0.00022728,2]
[340911248,1730070053457,-150.0,0.00022798,2]
[340911249,1730070053492,-300.0,0.00022829,2]
[340911250,1730070053524,-300.0,0.00022829,2]
[340911251,1730070053560,-24802.0751265,0.0002283,2]
[340911252,1730070290261,-8752.92418851,0.00022777,2]
[340911254,1730070358558,160.712919,0.00013973,2]
[340911307,1730070632943,-160.712919,0.00020807,2]
[340911308,1730070632953,-250.0,0.00022807,2]
[340911309,1730070632962,-250.0,0.00022869,2]
[340911310,1730070632976,-500.0,0.000229,2]
[340911311,1730070632985,-250.0,0.00022932,2]
[340911312,1730070632995,-250.0,0.00022994,2]
[340911313,1730070633005,-250.0,0.00023057,2]
[340911314,1730070633016,-250.0,0.00023119,2]
[340911315,1730070633026,-300.0,0.00023178,2]
[340911316,1730070633035,-300.0,0.00023178,2]
[340911317,1730070633045,-200.0,0.00023178,2]
[340911318,1730070633055,-10557.3006372,0.00023179,2]
[340911319,1730070633065,-250.0,0.00023182,2]
[340911320,1730070633075,-250.0,0.00023245,2]
[340911321,1730070633085,-250.0,0.00023307,2]
[340911322,1730070633095,-8752.92418851,0.0002335,2]
[340911323,1730070633105,-250.0,0.0002337,2]
[340911324,1730070633114,-186.352451,0.00023371,2]
[340911325,1730070633126,-166.666666,0.00023375,2]
[340911326,1730070633136,-250.0,0.00023432,2]
[340911327,1730070633145,-250.0,0.00023495,2]
[340911328,1730070633157,-250.0,0.00023557,2]
[340911329,1730070633167,-250.0,0.0002362,2]
[340911330,1730070633176,-250.0,0.00023682,2]
[340911331,1730070633186,-250.0,0.00023745,2]
[340911332,1730070633195,-250.0,0.00023807,2]
[340911333,1730070633205,-406.42818401,0.00023857,2]
[340911334,1730070633215,-8752.92418852,0.00023857,2]
[340911335,1730070633227,-250.0,0.0002387,2]
[340911336,1730070633237,-250.0,0.00023933,2]
[340911337,1730070633247,-250.0,0.00023995,2]
[340911338,1730070633257,-166.666666,0.00024012,2]
[340911339,1730070633267,-174.775793,0.0002409,2]